fUST/lending_fUST_20260202
["ID","MTS","AMOUNT","RATE_DAILY","PERIOD"]
[404249981,1770002830393,-2588.66252245,0.00125,120]
[404249982,1770002830414,-2500.0,0.00128,120]
[404249983,1770002830543,-166.66666666,0.001299,2]
[404249984,1770002830565,-220.79791349,0.00129989,120]
[404249985,1770002830588,-67687.5614258,0.0012999,23]
[404249986,1770002830609,-150.0,0.0012999,120]
[404249987,1770002830629,-500.0,0.00129999,120]
[404249988,1770002830651,-1000.0,0.0013,120]
[404249989,1770002830674,-1000.0,0.0013,120]
[404249990,1770002830694,-254166.81858057,0.0013,120]
[404249991,1770002830716,-465.22,0.0013,60]
[404249992,1770002830742,-793.77,0.0013,120]
[404249993,1770002830773,-186.12,0.0013,120]
[404249994,1770002830800,-204.0,0.0013199,120]
[404249995,1770002830827,-740.75809701,0.00132583,2]
[404249996,1770002830850,-467.64120359,0.00132739,120]
[404249997,1770002830874,-1041.66666667,0.00132924,2]
[404249998,1770002830908,-205.94473084,0.00135944,2]
[404249999,1770002830942,-11281.2602376,0.00135976,25]
[404250000,1770002830965,-56673.0719077,0.00135986,2]
[404250001,1770002830990,-400.010483,0.00136986,120]
[404250002,1770002831022,-251518.41377172,0.00138588,120]
[404250003,1770002831049,-1000.0,0.00139999,120]
[404250004,1770002831077,-2000.0,0.0014,120]
[404250005,1770002831102,-2140.25452075,0.0014,120]
[404250006,1770002831126,-400.010483,0.00144196,120]
[404250007,1770002831149,-11281.2602376,0.0014699,29]
[404250008,1770002831177,-500.0,0.00147,120]
[404250009,1770002831202,-500.0,0.00147,120]
[404250010,1770002831224,-500.0,0.00147,120]
[404250011,1770002831245,-500.0,0.00147,120]
[404250012,1770002831267,-500.0,0.00147,120]
[404250013,1770002831293,-500.0,0.00147,120]
[404250014,1770002831317,-517.15642963,0.00147,120]
[404250015,1770002831338,-205.94473084,0.00147937,2]
[404250016,1770002831360,-5095.85200446,0.00149,120]
[404250017,1770002831379,-1981.86021398,0.00149989,30]
[404250018,1770002831399,-1000.0,0.0014999,120]
[404250019,1770002831423,-33843.7807129,0.0014999,30]
[404250020,1770002831443,-106243.4040281,0.0015,120]
[404250021,1770002831471,-39372.20027519,0.0015,120]
[404250022,1770002831492,-3148.89,0.0015,30]
[404250023,1770002831512,-400.010483,0.00151406,120]
[404250024,1770002831534,-200.0,0.00152061,120]
[404250025,1770002831556,-200.0,0.0015684,120]
[404250026,1770002831578,-400.010483,0.00158616,120]
[404250027,1770002831601,-200.0,0.0016,120]
[404250028,1770002831621,-393.24,0.00164383,2]
[404250029,1770002831643,-400.010483,0.00165826,120]
[404250030,1770002831671,-500.0,0.00169,120]
[404250031,1770002831695,-205.94473084,0.00171923,2]
[404250032,1770002831715,-400.010483,0.00173035,120]
[404250033,1770002831737,-11281.2602376,0.00177615,30]
[404250034,1770002831758,-400.010483,0.00180245,120]
[404250035,1770002831779,-5455.1803,0.0018573,118]
[404250036,1770002831803,-400.010483,0.00187455,120]
[404250037,1770002831840,-2000.0,0.0019,120]
[404250038,1770002831863,-1012.25885304,0.0019,120]
[404250039,1770002831884,-465.22,0.0019,60]
[404250040,1770002831904,-393.24,0.0019178,2]
[404250041,1770002831929,-400.010483,0.00194665,120]
[404250042,1770002831952,-205.94473084,0.00195909,2]
[404250043,1770002831974,-11281.2602376,0.0019999,60]
[404250044,1770002831994,-1000.0,0.002,120]
[404250045,1770002832017,-200.0,0.002,120]
[404250046,1770002832037,-500.0,0.002,120]
[404250047,1770002832059,-1998.98693283,0.002,120]
[404250048,1770002832080,-990.0,0.00201486,120]
[404250049,1770002832106,-400.010483,0.00201875,120]
[404250050,1770002832130,-205.94473084,0.00207902,2]
[404250051,1770002832151,-400.010483,0.00209084,120]
[404250052,1770002832173,-400.010483,0.00216294,120]
[404250053,1770002832194,-3148.89,0.00217,30]
[404250054,1770002832214,-500.0,0.00219,120]
[404250055,1770002832234,-393.24,0.00219178,2]
[404250056,1770002832255,-205.94473084,0.00219895,2]
[404250057,1770002832278,-200.0,0.0022,120]
[404250058,1770002832298,-400.010483,0.00223504,120]
[404250059,1770002832322,-504.41760264,0.00225,45]
[404250060,1770002832343,-11281.2602376,0.00225475,60]
[404250061,1770002832366,-150.0,0.0022774,30]
[404250062,1770002832392,-400.010483,0.00230714,120]
[404250063,1770002832417,-205.94473084,0.00231888,2]
[404250064,1770002832439,-400.010483,0.00237924,120]
[404250065,1770002832460,-2000.0,0.0024,120]
[404250066,1770002832484,-205.94473084,0.00243881,2]
[404250067,1770002832505,-400.010483,0.00245133,120]
[404250068,1770002832526,-393.24,0.00246575,2]
[404250069,1770002832547,-169.32172863,0.0025,120]
[404250070,1770002832569,-2322.77810801,0.00252,120]
[404250071,1770002832591,-150.0,0.0025214,30]
[404250072,1770002832612,-400.010483,0.00252343,120]
[404250073,1770002832635,-205.94473084,0.00255874,2]
[404250074,1770002832656,-2267.172311,0.00259553,60]
[404250075,1770002832681,-1587.020618,0.00259553,120]
[404250076,1770002832703,-400.010483,0.00259553,120]
[404250077,1770002832731,-200.0,0.0026,120]
[404250078,1770002832755,-465.22,0.0026,60]
[404250079,1770002832777,-400.010483,0.00266763,120]
[404250080,1770002832798,-205.94473084,0.00267867,2]
[404250081,1770002832818,-500.0,0.00269,120]
[404250082,1770002832838,-11281.2602376,0.00273334,60]
[404250083,1770002832859,-393.24,0.00273972,2]
[404250084,1770002832879,-400.010483,0.00273973,120]
[404250085,1770002832898,-3148.89,0.00274,30]
[404250086,1770002832920,-150.0,0.00276541,30]
[404250087,1770002832942,-205.94473084,0.0027986,2]
[404250088,1770002832962,-453.434462,0.00280317,120]
[404250089,1770002832985,-2000.0,0.0029,120]
[404250090,1770002833006,-2500.0,0.0029,120]
[404250091,1770002833027,-205.94473084,0.00291853,2]
[404250092,1770002833048,-11281.2602376,0.0029999,90]
[404250093,1770002833067,-4079.0,0.003,2]
[404250094,1770002833089,-1000.0,0.003,120]
[404250095,1770002833110,-200.0,0.003,120]
[404250096,1770002833131,-5544.7,0.003,79]
[404250097,1770002833264,-500.0,0.003,120]
[404250098,1770002833291,-1998.98693283,0.003,120]
[404250099,1770002833314,-150.0,0.00300942,30]
[404250100,1770002833338,-393.24,0.00301369,2]
[404250101,1770002833360,-1499.32157143,0.0030139,90]
[404250102,1770002833404,4752.4750405,0.0004,2]
[404250104,1770002840705,357.38657093,0.00033,2]
[404250105,1770002841110,-150.0,0.00035789,30]
[404250106,1770002841132,-150.0,0.00039624,30]
[404250107,1770002841156,-247.5249595,0.0004,2]
[404250108,1770002841183,-112.23380829,0.00043458,30]
[404250109,1770002856246,150.0,0.00034366,30]
[404250110,1770002859892,2977.70414974,0.00018,2]
[404250111,1770002872315,150.0,0.00033215,30]
[404250112,1770002880615,150.0,0.00033381,30]
[404250113,1770002881479,805.74771269,0.00021,5]
[404250114,1770002892913,150.0,0.00033964,30]
[404250116,1770002903348,15874.16741286,0.0003,2]
[404250117,1770002905189,262.37500762,0.0003,120]
[404250118,1770002907193,4122.61914616,0.00026,30]
[404250119,1770002907220,25000.0,0.00026,30]
[404250120,1770002910774,501.4394144,0.00022,2]
[404250127,1770002963984,-25000.0,0.00026,30]
[404250128,1770002965208,-25000.0,0.00026,30]
[404250129,1770002966431,-13150.43376184,0.00026,30]
[404250130,1770002966457,-11849.56623816,0.00035,2]
[404250131,1770002967365,-25000.0,0.00035,2]
[404250132,1770002968186,-25000.0,0.00035,2]
[404250133,1770002969053,-25000.0,0.00035,2]
[404250134,1770002969756,-25000.0,0.00035,2]
[404250135,1770002970554,-25000.0,0.00035,2]
[404250136,1770002971603,-25000.0,0.00035,2]
[404250137,1770002972678,-25000.0,0.00035,2]
[404250138,1770002973602,-25000.0,0.00035,2]
[404250139,1770002974632,-25000.0,0.00035,2]
[404250140,1770002975729,-16653.03822464,0.00035,2]
[404250141,1770002977021,740.75809701,0.00035,2]
[404250144,1770003009525,-5000.0,0.0003694,20]
[404250145,1770003009550,-200.0,0.0003694,20]
[404250146,1770003009577,-19800.0,0.00037262,2]
[404250147,1770003011508,-1724.10045529,0.00037262,2]
[404250148,1770003026037,5000.0,0.0005,2]
[404250228,1770003037281,-1230.01700663,0.00036953,2]
[404250235,1770003037336,-25944.32942297,0.00036953,2]
[404250237,1770003037345,-211.45094392,0.000501,2]
[404250238,1770003037354,-4166.66,0.00054794,120]
[404250240,1770003037370,-4166.66,0.00063013,120]
[404250242,1770003037379,-4166.66,0.00071232,120]
[404250243,1770003037389,-211.45094392,0.00073386,2]
[404250244,1770003037397,-4166.66,0.00079452,120]
[404250245,1770003037406,-211.45094392,0.0008508,2]
[404250246,1770003037416,-4166.66,0.00087671,120]
[404250247,1770003037426,-4166.66,0.0009589,120]
[404250248,1770003037435,-211.45094392,0.00096773,2]
[404250249,1770003037444,-4166.66,0.00104109,120]
[404250250,1770003037454,-211.45094392,0.00108466,2]
[404250251,1770003037462,-4166.66,0.00112328,120]
[404250252,1770003037471,-2204.22,0.00118,30]
[404250253,1770003037481,-279.13,0.00118,60]
[404250254,1770003037490,-211.45094392,0.00120159,2]
[404250255,1770003037499,-4166.66,0.00120547,120]
[404250257,1770003037508,-4166.66,0.00128767,120]
[404250259,1770003037517,-211.45094392,0.00131852,2]
[404250260,1770003037527,-4166.66,0.00136986,120]
[404250261,1770003037536,-211.45094392,0.00143545,2]
[404250262,1770003037546,-4166.66,0.00145205,120]
[404250264,1770003037556,-4166.66,0.00153424,120]
[404250266,1770003037566,-211.45094392,0.00155239,2]
[404250268,1770003037575,-4166.66,0.00161643,120]
[404250269,1770003037585,-4166.66,0.00169863,120]
[404250271,1770003037594,-4166.66,0.00178082,120]
[404250273,1770003037604,-211.45094392,0.00178625,2]
[404250275,1770003037620,-200.0,0.00179988,120]
[404250277,1770003037631,-200.0,0.00179988,120]
[404250278,1770003037641,-206.32586976,0.00179988,120]
[404250279,1770003037650,-4166.66,0.00186301,120]
[404250280,1770003037660,-4166.66,0.0019452,120]
[404250281,1770003037670,-4166.66,0.00202739,120]
[404250283,1770003037679,-4166.66,0.00210958,120]
[404250285,1770003037689,-4166.66,0.00219178,120]
[404250287,1770003037699,-200.0,0.00224985,120]
[404250289,1770003037709,-200.0,0.00224985,120]
[404250290,1770003037718,-200.0,0.00224985,120]
[404250292,1770003037728,-211.45094392,0.00225398,2]
[404250294,1770003037737,-4166.66,0.00227397,120]
[404250296,1770003037749,-2204.22,0.00228,30]
[404250298,1770003037759,-279.13,0.00228,60]
[404250299,1770003037769,-4166.66,0.00235616,120]
[404250300,1770003037779,-211.45094392,0.00237091,2]
[404250302,1770003037789,-2000.0,0.00241111,120]
[404250303,1770003037798,-4166.8,0.00243835,120]
[404250304,1770003037807,-211.45094392,0.00248784,2]
[404250305,1770003037817,-211.45094392,0.00260477,2]
[404250307,1770003037826,-1554.0135775,0.00261111,120]
[404250335,1770003038165,-445.9864225,0.00261111,120]
[404250336,1770003038176,-200.0,0.00269982,120]
[404250338,1770003038186,-200.0,0.00269982,120]
[404250340,1770003038196,-200.0,0.00269982,120]
[404250342,1770003038205,-119.78163301,0.0027217,2]
[404250345,1770003038219,-91.66931091,0.0027217,2]
[404250347,1770003038230,-3000.0,0.0028,120]
[404250349,1770003038239,-2000.0,0.00281111,120]
[404250351,1770003038250,-211.45094392,0.00283864,2]
[404250353,1770003038259,-10000.0,0.0029,120]
[404250355,1770003038269,-211.45094392,0.00295557,2]
[404250357,1770003038279,-161.0,0.003014,120]
[404250358,1770003038289,-6324.42880135,0.003014,60]
[404250361,1770003038301,-8790.05327265,0.003014,60]
[404250362,1770003038311,-10580.137451,0.003014,120]
[404250364,1770003038320,-211.45094392,0.0030725,2]
[404250366,1770003038334,-500.0,0.00319,120]
[404250368,1770003038343,-200.0,0.0032,120]
[404250370,1770003038353,-226.717231,0.00324441,120]
[404250372,1770003038368,-393.24,0.00328767,2]
[404250373,1770003038380,-1000.0,0.0033,120]
[404250375,1770003038395,-10972.86927256,0.0033488,73]
[404250377,1770003038405,-990.0,0.00338472,120]
[404250379,1770003038414,-199.95,0.0034,120]
[404250381,1770003038424,-2000.0,0.0034,120]
[404250383,1770003038434,-5000.0,0.0034,120]
[404250385,1770003038443,-2500.0,0.0034,120]
[404250387,1770003038453,-211.45094392,0.00342329,2]
[404250389,1770003038463,-199.11708617,0.003484,120]
[404250391,1770003038473,-2204.22,0.00349,30]
[404250393,1770003038482,-279.13,0.00349,120]
[404250395,1770003038491,-10387.13663552,0.00349998,120]
[404250396,1770003038501,-50000.0,0.0035,120]
[404250398,1770003038510,-393.24,0.00356164,2]
[404250400,1770003038519,-200.0,0.0036,120]
[404250402,1770003038529,-200.0,0.00361668,120]
[404250404,1770003038538,-200.0,0.00361668,120]
[404250406,1770003038548,-200.0,0.00361668,120]
[404250408,1770003038559,-211.45094392,0.00365716,2]
[404250410,1770003038568,-500.0,0.00369,120]
[404250412,1770003038578,-246.09856684,0.00371,30]
[404250414,1770003038588,-6235.4,0.003736,88]
[404250416,1770003038599,-211.45094403,0.00377409,2]
[404250418,1770003038609,-393.24,0.00383561,2]
[404250419,1770003038623,-48125.98962578,0.00389102,2]
[404250421,1770003038633,-5000.0,0.0039,120]
[404250423,1770003038643,-2000.0,0.0039,120]
[404250425,1770003038652,-1000.0,0.00395,120]
[404250427,1770003038662,-437.34,0.0039982,120]
[404250429,1770003038672,-71003.21170297,0.003999,120]
[404250431,1770003038681,-1915.51367674,0.003999,120]
[404250432,1770003038691,-53796.31990436,0.004,120]
[404250489,1770003039305,-93814.051538,0.004,120]
[404250494,1770003039339,474.141309,0.0005,20]
[404250530,1770003040210,-2000.0,0.00221111,120]
[404250531,1770003040220,-2064.26690186,0.004,120]
[404250532,1770003040232,-8311.73929612,0.004,120]
[404250533,1770003040244,-48498.18781489,0.004,120]
[404250534,1770003040254,-200.0,0.004,120]
[404250535,1770003040264,-210.71672096,0.004,120]
[404250536,1770003040274,-300.0,0.004,120]
[404250537,1770003040283,-1998.98693283,0.004,120]
[404250538,1770003040293,-48125.98962578,0.00400795,2]
[404250539,1770003040303,-393.24,0.00410958,2]
[404250540,1770003040313,-48125.98962578,0.00412488,2]
[404250541,1770003040322,-500.0,0.00419,120]
[404250542,1770003040336,-200.0,0.0042,120]
[404250543,1770003040345,-48125.98962578,0.00424182,2]
[404250544,1770003040355,-393.24,0.00438356,2]
[404250545,1770003040371,-2000.0,0.0044,120]
[404250546,1770003040382,-200.0,0.0044,120]
[404250548,1770003040392,-48125.98962578,0.00447568,2]
[404250550,1770003040402,-2500.0,0.0045,120]
[404250551,1770003040412,-200.0,0.00452085,120]
[404250552,1770003040422,-200.0,0.00452085,120]
[404250553,1770003040431,-200.0,0.00452085,120]
[404250554,1770003040445,-2204.22,0.00453,30]
[404250555,1770003040454,-279.13,0.00454,120]
[404250556,1770003040464,-5759.59513,0.004543,82]
[404250557,1770003040473,-48125.98962578,0.00459261,2]
[404250558,1770003040483,-200.0,0.0046,120]
[404250559,1770003040493,-393.24,0.00465753,2]
[404250560,1770003040503,-500.0,0.00469,120]
[404250561,1770003040512,-27385.51648708,0.00470954,2]
[404250562,1770003040524,-6563.40000001,0.00470954,2]
[404250738,1770003044552,-12171.16865794,0.00470954,2]
[404250739,1770003044565,-296.04,0.00470954,2]
[404250740,1770003044576,-1709.86448075,0.00470954,2]
[404250741,1770003044587,-990.0,0.00475458,120]
[404250742,1770003044597,-1066.48551925,0.0048,120]
[404250743,1770003044609,-1590.23,0.0048,120]
[404250744,1770003044638,-1739.347916,0.0048,120]
[404250745,1770003044852,-1729.37574602,0.0048,120]
[404250747,1770003044867,-48125.98962578,0.00482647,2]
[404250749,1770003044876,-200.0,0.00489,120]
[404250751,1770003044886,-2000.0,0.0049,120]
[404250753,1770003044896,-844.12274484,0.0049,120]
[404250755,1770003044905,-393.24,0.0049315,2]
[404250757,1770003044916,-455.0,0.00494949,120]
[404250759,1770003044925,-2699.14160899,0.004999,30]
[404250761,1770003044934,-200.0,0.005,60]
[404250763,1770003044944,-1000.0,0.005,120]
[404250764,1770003044965,-200.0,0.005,120]
[404250765,1770003044974,-14134.14011437,0.005,120]
[404250826,1770003046321,-1920.153653,0.005,120]
[404250843,1770003047299,-18073.029654,0.005,120]
[404250844,1770003047310,-42478.49318114,0.005,120]
[404250845,1770003048336,5000.0,0.0005,2]
[404250846,1770003071579,5000.0,0.0005,2]
[404250847,1770003075417,582.74233251,0.00013273,2]
[404250848,1770003079396,238.54786555,0.0005,2]
[404250849,1770003081562,500.0,0.00013699,2]
[404250851,1770003095300,5000.0,0.0005,2]
[404250852,1770003117580,1480.46803765,0.0005,2]
[404250853,1770003117607,3519.53196235,0.0005,2]
[404250854,1770003133749,500.0,0.00013273,2]
[404250855,1770003140434,5000.0,0.0005,2]
[404250858,1770003162759,5000.0,0.0005,2]
[404250859,1770003184794,5000.0,0.0005,2]
[404250860,1770003209610,5000.0,0.0005,2]
[404250861,1770003231730,980.46803765,0.0005,2]
[404250865,1770003332299,160.0,0.00035,2]
[404250867,1770003561788,500.0,0.00013699,2]
[404250868,1770003561829,1000.0,0.00014247,2]
[404250869,1770003561881,540.77941003,0.00014795,2]
[404250870,1770003564309,500.0,0.00013273,2]
[404250871,1770003564360,461.78168812,0.00013821,2]
[404250872,1770003586404,4443.6425802,0.00030137,120]
[404250873,1770003586432,5556.3574198,0.00030137,120]
[404250874,1770003594418,10000.0,0.00030137,120]
[404250875,1770003607636,7096.0,0.00030137,120]
[404250882,1770003811988,2347.6425802,0.00035,2]
[404250883,1770003812014,2652.3574198,0.00035,2]
[404250884,1770003834061,5000.0,0.00035,2]
[404250885,1770003853962,500.0,0.00013273,2]
[404250886,1770003930158,-188.63513878,0.00037262,2]
[404250887,1770003930178,-1307.66175172,0.00037978,3]
[404250893,1770004039131,-150.25429218,0.00037262,2]
[404250894,1770004039153,-548.22527658,0.000378,2]
[404251036,1770004237506,-188.69276742,0.00037262,2]
[404251037,1770004237516,-719.65580979,0.000378,2]
[404251039,1770004237525,-220.53,0.000379,2]
[404251040,1770004237534,-1600.0,0.00037978,3]
[404251041,1770004237543,-226.0,0.00037979,3]
[404251042,1770004237552,-400.0,0.00037979,2]
[404251043,1770004237561,-5000.0,0.0003798,20]
[404251044,1770004237570,-487.0,0.00040596,5]
[404251045,1770004237579,-4788.4138513,0.00042393,2]
[404251046,1770004237588,-152.0,0.00048,120]
[404251048,1770004237601,-156.66078286,0.00048999,120]
[404251050,1770004237610,-500.0,0.00048999,120]
[404251051,1770004237619,-518.70801697,0.00048999,120]
[404251053,1770004237628,-500.0,0.00048999,31]
[404251055,1770004237637,-500.0,0.00048999,7]
[404251056,1770004237646,-277.0,0.00049,120]
[404251058,1770004237655,-12606.79474095,0.00049,2]
[404251060,1770004237664,-151.0,0.0005,120]
[404251061,1770004237673,-188.69276742,0.00050254,2]
[404251063,1770004237682,-151.0,0.000512,120]
[404251065,1770004237691,-151.0,0.000523,120]
[404251067,1770004237700,-179.485,0.00052899,97]
[404251069,1770004237709,-4999.97423919,0.000529,120]
[404251070,1770004237718,-4130.21321063,0.000534,28]
[404251071,1770004237727,-151.0,0.000535,120]
[404251072,1770004237739,-151.0,0.000547,120]
[404251073,1770004237748,-393.24,0.00054794,2]
[404251074,1770004237757,-282.66832872,0.00054794,120]
[404251075,1770004237766,-151.0,0.000559,120]
[404251076,1770004237776,-151.0,0.00057,120]
[404251079,1770004237786,-151.0,0.000582,120]
[404251082,1770004237795,-151.0,0.000594,120]
[404251084,1770004237805,-151.0,0.000606,120]
[404251086,1770004237814,-151.0,0.000617,120]
[404251089,1770004237823,-151.0,0.000629,120]
[404251091,1770004237832,-188.69276742,0.00063247,2]
[404251093,1770004237845,-151.0,0.000641,120]
[404251095,1770004237854,-151.0,0.000653,120]
[404251096,1770004237863,-151.0,0.000664,120]
[404251098,1770004237872,-151.0,0.000676,120]
[404251099,1770004237882,-151.0,0.000688,120]
[404251100,1770004237891,-151.0,0.0007,120]
[404251101,1770004237900,-151.0,0.000711,120]
[404251102,1770004237909,-151.0,0.000723,120]
[404251103,1770004237919,-151.0,0.000735,120]
[404251104,1770004237928,-151.0,0.000747,120]
[404251105,1770004237937,-151.0,0.000758,120]
[404251106,1770004237947,-165.0,0.00077,120]
[404251108,1770004237955,-156.0,0.0008,120]
[404251109,1770004237965,-179.485,0.00081449,120]
[404251110,1770004237974,-150.0,0.00081449,120]
[404251111,1770004237983,-177.0,0.00083449,120]
[404251112,1770004237992,-204.0,0.00085449,120]
[404251113,1770004238001,-231.0,0.00087449,120]
[404251114,1770004238010,-258.0,0.00089449,120]
[404251115,1770004238019,-166.67117929,0.00091449,120]
[404251116,1770004238029,-188.69276742,0.00102224,2]
[404251117,1770004238038,-179.485,0.0011,120]
[404251118,1770004238047,-188.69276742,0.00128209,2]
[404251119,1770004238057,-188.69276742,0.00141201,2]
[404251120,1770004238067,-188.69276742,0.00154194,2]
[404251121,1770004238076,-1000.0,0.00171666,30]
[404251122,1770004238086,-300.0,0.00178226,15]
[404251123,1770004238097,-188.69276742,0.00180179,2]
[404251124,1770004238106,-500.0,0.002,120]
[404251125,1770004238116,-188.69276742,0.00245141,2]
[404251126,1770004238125,-188.69276742,0.00258133,2]
[404251127,1770004238134,-188.69276742,0.00271126,2]
[404251128,1770004238144,-151.0,0.00273973,120]
[404251129,1770004238154,-151.0,0.00273973,120]
[404251131,1770004238164,-155.861534,0.00273973,120]
[404251132,1770004238173,-188.69276742,0.00284118,2]
[404251133,1770004238182,-188.69276742,0.0029711,2]
[404251134,1770004238192,-188.69276742,0.00310103,2]
[404251135,1770004238201,-188.69276742,0.00323095,2]
[404251136,1770004238211,-188.69276742,0.00336088,2]
[404251138,1770004238220,-188.69276742,0.0034908,2]
[404251139,1770004238229,-188.69276742,0.00362072,2]
[404251140,1770004238239,-188.69276742,0.00375065,2]
[404251141,1770004238248,-2000.0,0.0037888,120]
[404251142,1770004238258,-188.69276742,0.00388057,2]
[404251143,1770004238267,-1729.37574602,0.0039,120]
[404251144,1770004238276,-2000.0,0.0039888,120]
[404251145,1770004238285,-2500.0,0.0041,120]
[404251146,1770004238295,-45460.95019476,0.00427035,2]
[404251147,1770004238305,-2000.0,0.0042888,120]
[404251148,1770004238314,-205.47369469,0.004293,120]
[404251149,1770004238324,-273.78665901,0.004293,120]
[404251150,1770004238333,-256.36143565,0.004293,120]
[404251151,1770004238344,-45460.95019476,0.00440027,2]
[404251152,1770004238355,-372.46654984,0.0044272,120]
[404251153,1770004238364,-2213.60853677,0.0044281,120]
[404251154,1770004238374,-305.75646768,0.00442819,120]
[404251155,1770004238383,-2695.915433,0.00448635,30]
[404251156,1770004238473,-2000.0,0.0044888,120]
[404251157,1770004238487,-372.46654983,0.00452658,120]
[404251158,1770004238496,-45460.95019476,0.00453019,2]
[404251159,1770004238506,-2213.60853677,0.00456329,120]
[404251160,1770004238515,-372.46654983,0.00462596,120]
[404251161,1770004238525,-45460.95019476,0.00466012,2]
[404251162,1770004238534,-530.93,0.00467398,120]
[404251163,1770004238544,-1000.0,0.00467398,120]
[404251164,1770004238553,-2000.0,0.0046888,120]
[404251165,1770004238563,-555.68744105,0.00469847,120]
[404251166,1770004238576,-1180.000025,0.00469847,120]
[404251167,1770004238588,-477.92107072,0.00469847,120]
[404251168,1770004238602,-372.46654983,0.00472533,120]
[404251169,1770004238611,-530.93,0.00475617,120]
[404251170,1770004238620,-240.95791094,0.00475617,120]
[404251171,1770004238632,-759.04208906,0.00475617,120]
[404251172,1770004238641,-8.35014694,0.00479004,2]
[404251173,1770004238654,-2482.10465906,0.00479004,2]
[404251174,1770004238665,-439.78376159,0.00479004,2]
[404251175,1770004238677,-42530.71162717,0.00479004,2]
[404251176,1770004238686,-372.46654983,0.00482471,120]
[404251177,1770004238695,-2213.60853677,0.00483366,120]
[404251178,1770004238705,-530.93,0.00483836,120]
[404251179,1770004238714,-1000.0,0.00483836,120]
[404251180,1770004238728,-2000.0,0.0048888,120]
[404251181,1770004238738,-2000.0,0.0049,120]
[404251182,1770004238748,-45460.95019476,0.00491997,2]
[404251183,1770004238758,-530.93,0.00492055,120]
[404251184,1770004238768,-1000.0,0.00492055,120]
[404251185,1770004238777,-2213.60853677,0.00496884,120]
[404251186,1770004238787,-4427.21707354,0.0049989,120]
[404251187,1770004238797,-62133.1625166,0.004999,120]
[404251188,1770004238808,-3735.52479466,0.004999,120]
[404251202,1770004240410,-191.65066131,0.00389999,120]
[404251203,1770004240420,-3608.36518404,0.004999,120]
[404251335,1770004246385,-5000.0,0.0003798,20]
[404251336,1770004246394,-179.45300495,0.00389999,120]
[404251337,1770004246404,-19410.9475047,0.004999,120]
[404251338,1770004246413,-12951.65967673,0.0049999,120]
[404251339,1770004246424,-3721.65407428,0.0049999,120]
[404251340,1770004246491,-566.01528563,0.0049999,120]
[404251341,1770004246547,-11537.58194136,0.0049999,120]
[404251342,1770004246556,-990.0,0.00499999,120]
[404251343,1770004246565,-258670.79429792,0.005,120]
[404251344,1770004246575,-500000.0,0.005,120]
[404251345,1770004246584,-300.0,0.005,120]
[404251346,1770004246593,-1998.98693283,0.005,120]
[404251347,1770004246606,-221.33,0.005,120]
[404251348,1770004246615,-1847.34,0.005,30]
[404251349,1770004246625,-200.0,0.005,60]
[404251350,1770004246634,-530.93,0.00500275,120]
[404251351,1770004246643,-1000.0,0.00500275,120]
[404251352,1770004246653,-45460.95019476,0.00504989,2]
[404251353,1770004246662,-530.93,0.00508494,120]
[404251354,1770004246671,-1000.0,0.00508494,120]
[404251355,1770004246680,-530.93,0.00516713,120]
[404251356,1770004246689,-1000.0,0.00516713,120]